bitfinex/quotes_SOLUSD_20220117
["timestamp","ask_amount","ask_price","bid_price","bid_amount"]
[1642462540730,5.14297419,140.05,139.98,2.856]
[1642462540925,5.14297419,140.05,139.97,2.01728422]
[1642462541428,42.45896321,140.04,139.97,2.01728422]
[1642462541628,2.857,140.03,139.97,24.96318422]
[1642462541827,2.857,140.03,139.98,0.25]
[1642462542627,10.7157,140.02,139.98,0.25]
[1642462543134,12.75267419,140.02,139.98,0.25]
[1642462543833,12.75267419,140.02,139.97,0.25]
[1642462544733,2.03697419,140.02,139.98,2.857]
[1642462544931,2.03697419,140.02,139.98,10.574]
[1642462545131,2.03697419,140.02,139.99,0.25]
[1642462545332,2.03697419,140.02,140.01,2.51358757]
[1642462545730,2.03697419,140.02,140.01,8.76358757]
[1642462545931,2.03697419,140.02,140.01,19.47378757]
[1642462546132,2.03697419,140.02,140.01,8.76358757]
[1642462546335,2.03697419,140.05,140.01,8.76358757]
[1642462546731,2.03697419,140.05,140.02,0.25]
[1642462549338,2.03697419,140.05,140.02,3.106]
[1642462549837,2.03697419,140.05,140.02,9.106]
[1642462550240,2.03697419,140.05,140.02,8.856]
[1642462550440,6.06439994,140.04,140.02,6.0]
[1642462550638,2.856,140.04,140.0,6.0]
[1642462550839,2.856,140.04,139.96,4.87328422]
[1642462551047,2.856,140.04,139.98,0.25]
[1642462551642,10.7149,140.03,139.98,0.25]
[1642462552043,2.03697419,140.02,139.98,0.25]
[1642462552244,2.03697419,140.02,139.97,0.25]
[1642462552543,12.75207419,140.02,139.97,0.25]
[1642462554253,18.75207419,140.02,139.97,0.25]
[1642462556853,12.75207419,140.02,139.97,0.25]
[1642462557247,18.75207419,140.02,139.97,0.25]
[1642462557448,12.75207419,140.02,139.97,0.25]
[1642462559350,2.03697419,140.01,139.97,0.25]
[1642462559550,10.7164,140.0,139.97,0.25]
[1642462560751,6.06439994,139.99,139.97,0.25]
[1642462562455,6.06439994,139.99,139.96,0.25]
[1642462563271,10.7164,140.0,139.96,0.25]
[1642462563756,12.75247419,140.01,139.96,22.78489296]
[1642462563956,2.03697419,140.01,139.97,2.857]
[1642462564157,2.03697419,140.01,139.98,10.3]
[1642462564358,2.03697419,140.01,139.99,2.857]
[1642462564585,2.03697419,140.01,139.98,6.0]
[1642462564786,2.03697419,140.01,139.96,2.857]
[1642462564787,2.03697419,140.01,139.95,10.3]
[1642462564985,10.7153,140.01,139.95,2.857]
[1642462565185,2.857,140.0,139.95,6.0]
[1642462565388,49.25227325,139.99,139.94,2.01728422]
[1642462565588,2.857,139.98,139.94,2.01728422]
[1642462565987,2.857,139.98,139.93,10.3]
[1642462566788,10.7202,139.97,139.93,10.3]
[1642462566987,2.858,139.96,139.93,10.3]
[1642462567190,6.06439994,139.95,139.93,10.3]
[1642462568290,2.858,139.98,139.93,10.3]
[1642462568488,10.7193,139.96,139.91,13.157]
[1642462568688,10.7193,139.96,139.92,0.25]
[1642462570992,10.7193,139.96,139.93,6.51196668]
[1642462571589,10.2193,139.96,139.93,6.51196668]
[1642462573219,6.06439994,139.95,139.93,6.51196668]
[1642462574225,16.78439994,139.95,139.93,6.51196668]
[1642462575520,16.78439994,139.95,139.92,6.51196668]
[1642462581751,0.25,139.94,139.92,6.51196668]
[1642462581953,10.7248,139.93,139.92,6.51196668]
[1642462582350,50.01629552,139.93,139.89,6.51196668]
[1642462583956,52.05326971,139.93,139.89,6.51196668]
[1642462584152,12.76177419,139.93,139.89,6.51196668]
[1642462584353,12.76177419,139.93,139.9,0.25]
[1642462584552,3.03219997,139.92,139.9,0.25]
[1642462584756,13.75479997,139.92,139.9,0.25]
[1642462585154,13.75479997,139.92,139.89,6.51196668]
[1642462585356,13.75479997,139.92,139.91,6.51196668]
[1642462585755,3.03219997,139.92,139.91,6.76196668]
[1642462585959,3.03219997,139.92,139.91,7.12434884]
[1642462586155,6.06439994,139.92,139.91,7.12434884]
[1642462589563,10.721,139.94,139.91,7.12434884]
[1642462590967,10.721,139.94,139.91,6.76196668]
[1642462593367,10.721,139.94,139.91,12.76196668]
[1642462593571,10.721,139.94,139.91,6.76196668]
[1642462595171,10.7201,139.95,139.91,6.76196668]
[1642462595569,10.7201,139.95,139.91,12.76196668]
[1642462595773,2.858,139.96,139.92,0.25]
[1642462595969,2.03697419,139.97,139.92,3.108]
[1642462596173,7.419e-05,139.97,139.93,6.51196668]
[1642462596369,7.419e-05,139.97,139.94,13.408]
[1642462596570,5.57177466,140.03,139.94,13.408]
[1642462596769,5.57177466,140.03,139.95,93.35290781]
[1642462596968,5.57177466,140.03,139.96,2.857]
[1642462597169,4.07421239,140.02,139.96,3.107]
[1642462597370,4.07421239,140.02,139.96,19.407]
[1642462598070,59.50996276,140.05,139.96,19.407]
[1642462598269,53.9381881,140.05,139.96,42.3223]
[1642462598670,10.7146,140.02,139.97,10.7137]
[1642462598871,10.7146,140.02,139.98,0.25]
[1642462599972,10.7146,140.02,139.98,6.76196668]
[1642462600272,10.7146,140.02,139.98,12.76196668]
[1642462601274,10.7146,140.02,139.98,6.76196668]
[1642462601476,10.7146,140.02,139.98,6.51196668]
[1642462601672,2.857,140.01,139.98,6.51196668]
[1642462601874,10.7166,140.0,139.98,6.51196668]
[1642462602273,48.50432202,140.0,139.97,6.51196668]
[1642462602478,3.03219997,139.99,139.97,6.51196668]
[1642462602675,5.88919997,139.99,139.97,6.51196668]
[1642462603677,10.7176,139.98,139.97,6.51196668]
[1642462604275,13.74979997,139.98,139.97,6.51196668]
[1642462607776,10.7176,139.98,139.97,6.51196668]
[1642462608581,13.74909997,139.99,139.97,6.51196668]
[1642462609179,13.74909997,139.99,139.95,9.36896668]
[1642462609378,13.74909997,139.99,139.96,0.25]
[1642462609607,13.74909997,139.99,139.95,15.36896668]
[1642462610911,13.74909997,139.99,139.95,12.51196668]
[1642462612010,16.60609997,139.99,139.95,12.51196668]
[1642462617014,16.10609997,139.99,139.95,12.51196668]
[1642462619120,16.10609997,139.99,139.95,6.51196668]
[1642462620016,16.10609997,139.99,139.94,6.51196668]
[1642462620319,16.10609997,139.99,139.94,6.76196668]
[1642462622925,13.24909997,139.99,139.94,6.76196668]
[1642462623224,13.24909997,139.99,139.94,6.51196668]
[1642462623928,10.7192,139.97,139.94,6.51196668]
[1642462624327,10.7192,139.97,139.95,0.5]
[1642462624526,3.03219997,139.96,139.94,6.51196668]
[1642462624728,3.03219997,139.96,139.93,28.8414]
[1642462625328,3.03219997,139.96,139.94,0.25]
[1642462625726,3.03219997,139.96,139.95,6.51196668]
[1642462626127,10.7175,139.98,139.95,7.01196668]
[1642462626930,10.7175,139.98,139.95,13.01196668]
[1642462629732,10.7175,139.98,139.95,7.01196668]
[1642462630529,5.56439994,139.97,139.95,7.01196668]
[1642462630731,5.56439994,139.97,139.95,6.51196668]
[1642462633131,5.56439994,139.97,139.96,0.5]
[1642462633632,10.7175,139.98,139.96,0.5]
[1642462634231,10.7175,139.98,139.96,7.01196668]
[1642462634432,5.56439994,139.97,139.96,6.51196668]
[1642462634935,16.28269994,139.97,139.96,6.51196668]
[1642462636333,5.56439994,139.97,139.96,6.51196668]
[1642462636539,10.7175,139.98,139.96,7.01196668]
[1642462636735,2.857,140.02,139.96,0.75]
[1642462636933,6.93121239,140.03,139.97,13.407]
[1642462637137,4.07421239,140.03,139.97,16.21717468]
[1642462637333,4.07421239,140.03,139.97,22.21717468]
[1642462637542,6.93121239,140.05,139.97,22.21717468]
[1642462637735,6.93121239,140.05,139.97,32.93137468]
[1642462637933,4.07421239,140.05,139.97,32.93137468]
[1642462638335,4.07421239,140.05,139.97,34.73479211]
[1642462638535,4.07421239,140.05,139.98,71.7]
[1642462638833,4.07421239,140.07,140.0,10.7102]
[1642462639035,4.07421239,140.07,140.02,26.57329815]
[1642462639235,4.07421239,140.07,140.03,0.25]
[1642462639934,4.07421239,140.07,140.04,6.51196668]
[1642462640136,4.07421239,140.07,140.05,0.5]
[1642462640535,17.63961239,140.09,140.05,0.5]
[1642462641835,10.7109,140.07,140.05,0.5]
[1642462643138,5.56439994,140.06,140.03,0.25]
[1642462643337,5.56439994,140.06,140.04,0.5]
[1642462643937,10.7109,140.07,140.05,6.51196668]
[1642462645038,10.7109,140.07,140.06,0.5]
[1642462645239,10.71,140.08,140.06,0.5]
[1642462646840,2.53219997,140.07,140.06,0.5]
[1642462647041,13.24349997,140.07,140.05,6.51196668]
[1642462647644,13.24349997,140.07,140.03,0.25]
[1642462647845,10.7113,140.07,140.06,0.5]
[1642462648042,10.7113,140.07,140.06,6.51196668]
[1642462649146,16.27569994,140.07,140.06,6.51196668]
[1642462649343,16.52569994,140.07,140.06,6.51196668]
[1642462649546,19.38069994,140.07,140.06,6.51196668]
[1642462649745,19.38069994,140.07,140.06,0.00196668]
[1642462650544,25.38069994,140.07,140.06,0.00196668]
[1642462650774,19.38069994,140.07,140.06,0.00196668]
[1642462650974,27.0,140.06,140.02,2.855]
[1642462651173,10.7163,140.04,140.02,2.855]
[1642462651374,3.106,140.03,140.02,2.855]
[1642462651773,46.22045878,140.03,140.02,2.855]
[1642462652176,56.93675878,140.03,140.02,2.855]
[1642462653175,10.9663,140.03,140.02,2.855]
[1642462653376,2.856,140.05,140.02,2.855]
[1642462653578,4.07421239,140.06,140.03,0.5]
[1642462654582,46.75152795,140.07,140.03,0.5]
[1642462654778,49.60752795,140.07,140.03,0.5]
[1642462655182,2.856,140.07,140.03,0.5]
[1642462655582,4.07421239,140.09,140.04,2.856]
[1642462655779,4.07421239,140.09,140.05,0.25]
[1642462655981,4.07421239,140.09,140.06,2.855]
[1642462656181,4.07421239,140.09,140.07,0.5]
[1642462656382,14.78371239,140.09,140.07,0.5]
[1642462656682,3.03219997,140.08,140.07,0.5]
[1642462657184,3.03219997,140.08,140.05,3.105]
[1642462657388,3.03219997,140.08,140.06,0.5]
[1642462658287,13.24169997,140.09,140.06,0.5]
[1642462659885,10.7095,140.09,140.06,0.5]
[1642462662286,5.56439994,140.08,140.06,0.5]
[1642462663190,13.5638,140.1,140.06,0.5]
[1642462664991,2.855,140.1,140.06,0.5]
[1642462665191,2.855,140.1,140.06,0.75]
[1642462665390,4.07421239,140.11,140.06,0.75]
[1642462666190,4.07421239,140.11,140.06,13.47857916]
[1642462666491,4.07421239,140.11,140.07,3.105]
[1642462666792,1.239e-05,140.13,140.08,10.3]
[1642462666997,5.57177466,140.16,140.09,2.855]
[1642462667193,5.57177466,140.16,140.09,85.105]
[1642462667393,5.57177466,140.16,140.09,30.1085]
[1642462668194,46.53629494,140.17,140.09,30.1085]
[1642462668396,2.854,140.16,140.09,30.1085]
[1642462668696,13.5584,140.16,140.09,30.1085]
[1642462669993,10.7034,140.17,140.09,101.8085]
[1642462670696,10.7034,140.17,140.09,30.1085]
[1642462670894,39.08559044,140.16,140.09,30.1085]
[1642462671096,52.64439044,140.16,140.09,30.1085]
[1642462671294,49.79039044,140.16,140.09,30.1085]
[1642462671495,2.854,140.15,140.09,30.1085]
[1642462671692,2.854,140.15,140.09,19.155]
[1642462672896,2.854,140.15,140.09,16.3]
[1642462673095,2.854,140.15,140.1,0.25]
[1642462673296,2.854,140.2,140.11,2.854]
[1642462673698,0.25,140.19,140.12,0.25]
[1642462673896,2.853,140.18,140.12,0.25]
[1642462674096,42.71377016,140.17,140.12,0.25]
[1642462674297,2.854,140.16,140.11,13.5577]
[1642462674496,42.96377016,140.17,140.11,13.5577]
[1642462674697,2.854,140.16,140.11,19.5577]
[1642462675501,13.5584,140.16,140.11,19.5577]
[1642462676000,2.854,140.16,140.12,0.25]
[1642462676203,2.854,140.18,140.12,0.25]
[1642462676400,2.854,140.2,140.12,10.9531]
[1642462676602,10.702,140.19,140.13,2.853]
[1642462676801,10.702,140.19,140.14,0.25]
[1642462677232,58.52022993,140.19,140.14,0.25]
[1642462678430,58.52022993,140.19,140.13,8.853]
[1642462678631,58.52022993,140.19,140.14,0.25]
[1642462678833,13.556,140.18,140.14,0.25]
[1642462679035,10.703,140.18,140.14,0.25]
[1642462680533,10.7021,140.19,140.14,0.25]
[1642462680735,2.853,140.21,140.14,0.25]
[1642462681135,0.25,140.2,140.14,0.25]
[1642462681335,8.853,140.22,140.14,0.25]
[1642462681536,40.70102098,140.22,140.15,2.853]
[1642462681734,10.7005,140.21,140.15,13.5532]
[1642462682037,10.7005,140.21,140.16,0.25]
[1642462682235,13.5535,140.21,140.16,0.25]
[1642462682634,17.62333418,140.21,140.16,0.25]
[1642462683334,14.77033418,140.21,140.17,2.853]
[1642462683538,17.62333418,140.21,140.17,2.853]
[1642462683736,13.5535,140.21,140.17,2.853]
[1642462684535,10.7005,140.21,140.17,2.853]
[1642462685538,10.7005,140.21,140.16,3.103]
[1642462685939,10.7005,140.21,140.16,9.103]
[1642462686138,10.7005,140.21,140.16,19.8033]
[1642462686339,13.5535,140.21,140.16,16.9503]
[1642462686539,13.5535,140.21,140.16,6.25]
[1642462686739,13.5535,140.21,140.16,0.25]
[1642462686940,13.5535,140.21,140.16,6.25]
[1642462687539,13.5535,140.21,140.16,0.25]
[1642462688439,13.5535,140.21,140.15,8.853]
[1642462688839,13.5535,140.21,140.15,2.853]
[1642462690646,4.07005073,140.2,140.15,2.853]
[1642462690942,10.7032,140.19,140.14,23.9152]
[1642462691144,10.7032,140.19,140.15,0.25]
[1642462695448,10.7032,140.19,140.14,29.9152]
[1642462695646,10.7032,140.19,140.15,2.853]
[1642462695848,10.7032,140.19,140.14,29.9152]
[1642462696048,2.853,140.18,140.14,29.9152]
[1642462696248,51.87519793,140.17,140.14,6.0]
[1642462696448,5.56439994,140.16,140.14,6.0]
[1642462696653,5.56439994,140.16,140.12,16.3]
[1642462697155,5.56439994,140.16,140.12,19.154]
[1642462697550,16.26839994,140.16,140.12,19.154]
[1642462699656,16.26839994,140.16,140.13,0.25]
[1642462699954,16.26839994,140.16,140.14,0.5]
[1642462700353,16.26839994,140.16,140.13,0.25]
[1642462701355,16.26839994,140.16,140.12,19.154]
[1642462701556,2.854,140.15,140.1,24.0315]
[1642462701758,10.7066,140.14,140.1,30.0315]
[1642462703692,10.7049,140.15,140.1,30.0315]
[1642462703885,10.7049,140.15,140.11,0.25]
[1642462705085,10.7049,140.15,140.1,30.0315]
[1642462706286,10.7049,140.15,140.11,0.25]
[1642462707291,10.7049,140.15,140.1,30.0315]
[1642462708690,10.7049,140.15,140.11,0.25]
[1642462710991,13.5583,140.16,140.11,0.25]
[1642462711192,10.7043,140.16,140.11,3.104]
[1642462711396,10.7043,140.16,140.11,9.104]
[1642462713195,13.5583,140.16,140.11,6.25]
[1642462713395,13.5583,140.16,140.11,0.25]
[1642462713895,13.5583,140.16,140.1,32.8855]
[1642462714899,13.5583,140.16,140.1,2.854]
[1642462715096,0.25,140.15,140.1,2.854]
[1642462715297,13.5622,140.14,140.06,2.854]
[1642462715498,13.5622,140.14,140.07,6.0]
[1642462715801,13.5622,140.14,140.06,8.854]
[1642462715996,13.5622,140.14,140.06,2.854]
[1642462716198,13.5622,140.14,140.07,0.25]
[1642462716396,13.5622,140.14,140.06,8.854]
[1642462716596,13.5622,140.14,140.07,10.3]
[1642462716795,10.7082,140.14,140.08,2.855]
[1642462717197,2.03524611,140.13,140.08,2.855]
[1642462717597,45.57119988,140.12,140.08,19.5611]
[1642462717799,45.57119988,140.12,140.08,2.855]
[1642462717996,45.57119988,140.12,140.04,49.08426861]
[1642462717997,3.105,140.11,140.04,4.78467878]
[1642462718197,3.105,140.11,140.04,1.92967878]
[1642462718396,3.105,140.11,140.05,1.92967878]
[1642462718597,9.105,140.11,140.05,1.92967878]
[1642462718801,3.105,140.11,140.05,1.92967878]
[1642462719598,13.8133,140.11,140.05,1.92967878]
[1642462720001,2.03524611,140.08,139.99,12.64197878]
[1642462720198,39.33965859,140.07,140.0,0.25]
[1642462720598,10.7122,140.06,140.0,0.25]
[1642462722002,10.7122,140.06,140.01,2.856]
[1642462722399,10.7122,140.06,140.02,0.25]
[1642462724799,2.03524611,140.08,140.02,0.25]
[1642462725200,2.03524611,140.08,140.02,12.51495803]
[1642462725399,2.03524611,140.08,140.02,18.51495803]
[1642462726100,61.00211792,140.1,140.03,2.856]
[1642462726299,61.00211792,140.1,140.04,0.25]
[1642462726499,12.74394611,140.1,140.05,2.855]
[1642462726699,2.03524611,140.1,140.05,2.855]
[1642462726901,2.03524611,140.1,140.06,0.25]
[1642462727102,2.03524611,140.1,140.07,2.855]
[1642462727305,2.03524611,140.11,140.08,0.25]
[1642462727503,38.10480516,140.11,140.09,3.355]
[1642462727700,38.10480516,140.11,140.09,0.5]
[1642462728199,19.12819994,140.1,140.04,2.855]
[1642462728401,27.75319994,140.1,140.04,1.92967878]
[1642462728599,0.25,140.09,140.04,1.92967878]
[1642462728801,2.855,140.08,139.98,2.855]
[1642462729001,2.855,140.08,139.97,47.0585]
[1642462729002,14.91119958,140.08,139.97,47.0585]
[1642462729200,10.7159,140.04,139.97,47.0585]
[1642462729400,39.20522312,140.02,139.95,2.856]
[1642462729802,3.107,140.01,139.95,2.856]
[1642462731204,3.107,140.01,139.94,27.6748]
[1642462731404,3.107,140.01,139.95,0.25]
[1642462731607,10.7175,140.0,139.95,0.25]
[1642462732005,48.55056116,139.99,139.95,0.25]
[1642462732604,48.55056116,139.99,139.94,27.6748]
[1642462732809,48.55056116,139.99,139.93,10.3]
[1642462733007,59.26756116,139.99,139.93,16.3]
[1642462733208,10.717,139.99,139.94,2.857]
[1642462733609,2.857,140.04,139.94,8.857]
[1642462733808,0.25,140.03,139.95,0.25]
[1642462734010,0.25,140.03,139.96,2.857]
[1642462734210,47.14866904,140.03,139.96,2.857]
[1642462734411,47.14866904,140.03,139.97,0.25]
[1642462735111,47.14866904,140.03,139.96,8.857]
[1642462735316,2.857,140.02,139.96,2.857]
[1642462736616,13.5719,140.02,139.95,13.5725]
[1642462736916,35.7125,140.07,139.96,11.85465803]
[1642462737115,29.75657466,140.1,139.97,74.556]
[1642462737116,2.856,140.09,139.97,74.556]
[1642462737315,2.856,140.09,139.98,10.3]
[1642462737516,2.856,140.09,139.99,2.856]
[1642462737717,10.7118,140.08,140.01,10.7115]
[1642462737918,59.79514878,140.08,140.02,2.856]
[1642462738117,59.79514878,140.08,140.02,3.106]
[1642462738316,59.79514878,140.08,140.02,9.106]
[1642462738718,2.856,140.07,140.02,6.0]
[1642462738918,59.79514878,140.08,140.02,6.0]
[1642462739118,13.5686,140.07,140.01,19.156]
[1642462739321,13.8186,140.07,140.01,16.3]
[1642462740724,13.5686,140.07,140.02,0.25]
[1642462740922,2.856,140.1,140.02,3.106]
[1642462741122,2.855,140.12,140.02,26.3872]
[1642462741322,8.855,140.12,140.02,32.3872]
[1642462741522,2.855,140.12,140.02,32.3872]
[1642462741725,47.22824138,140.11,140.02,42.6872]
[1642462742024,10.7105,140.09,140.02,39.5812]
[1642462742229,2.856,140.08,139.98,13.156]
[1642462742430,2.856,140.08,139.97,25.7569]
[1642462742626,0.25,140.07,139.97,31.7569]
[1642462742824,2.856,140.06,139.97,31.7569]
[1642462743021,39.72812135,140.05,139.97,31.7569]
[1642462743624,50.44192135,140.05,139.97,42.4714]
[1642462743825,50.44192135,140.05,139.98,0.25]
[1642462744228,39.72812135,140.05,139.98,0.25]
[1642462745244,50.44172135,140.05,139.98,10.964]
[1642462745645,50.44172135,140.05,139.98,16.964]
[1642462746244,38.5701,140.08,139.98,16.964]
[1642462746444,2.856,140.08,139.99,37.4752]
[1642462746644,0.25,140.09,139.99,119.4752]
[1642462746645,2.856,140.09,139.99,119.4752]
[1642462746844,47.0831,140.1,140.0,0.25]
[1642462747044,2.856,140.09,140.01,2.856]
[1642462747245,44.96588569,140.08,140.02,0.25]
[1642462747446,10.7125,140.06,140.01,2.856]
[1642462747645,2.856,140.05,139.98,2.856]
[1642462747844,3.106,140.05,139.98,8.856]
[1642462748247,39.35976534,140.04,139.98,8.856]
[1642462749346,39.35976534,140.04,139.99,0.25]
[1642462749547,50.07426534,140.04,139.99,0.25]
[1642462749747,50.07426534,140.04,139.98,19.5699]
[1642462750146,50.07426534,140.04,139.98,8.856]
[1642462750349,0.25,140.03,139.98,8.856]
[1642462750546,2.857,140.02,139.98,8.856]
[1642462750946,2.857,140.09,139.99,0.25]
[1642462751148,2.857,140.09,139.99,24.2063]
[1642462751347,0.25,140.08,139.99,30.2063]
[1642462751545,2.856,140.07,140.0,2.856]
[1642462751745,49.28255935,140.06,140.0,8.856]
[1642462751946,59.99605935,140.06,140.0,8.856]
[1642462753548,59.99605935,140.06,140.0,19.5683]
[1642462757356,59.99605935,140.06,140.0,29.8683]
[1642462758154,59.99605935,140.06,140.01,0.25]
[1642462758754,59.99605935,140.06,140.0,29.8683]
[1642462758956,2.856,140.05,140.0,27.0123]
[1642462760258,2.856,140.05,140.0,16.3]
[1642462760657,13.5693,140.05,140.0,16.3]
[1642462764257,19.4543,140.05,140.0,16.3]
[1642462764757,0.25,140.04,140.0,16.3]
[1642462764957,2.856,140.03,140.0,16.3]
[1642462765159,61.85576873,140.02,140.0,6.0]
[1642462765374,67.31776873,140.02,139.97,8.856]
[1642462765559,67.31776873,140.02,139.97,2.856]
[1642462765560,3.107,140.01,139.97,2.856]
[1642462766159,10.7171,140.0,139.97,2.856]
[1642462766462,8.67139994,139.99,139.94,3.98654946]
[1642462766661,15.74639994,139.99,139.94,3.98654946]
[1642462766865,42.71820301,139.98,139.94,3.98654946]
[1642462767261,53.43710301,139.98,139.94,3.98654946]
[1642462767465,56.29410301,139.98,139.92,10.3]
[1642462767861,56.29410301,139.98,139.91,28.79824946]
[1642462768264,10.723,139.96,139.91,3.98654946]
[1642462768462,13.581,139.96,139.91,3.98654946]
[1642462768662,0.25,139.95,139.91,3.98654946]
[1642462768863,2.858,139.94,139.91,3.98654946]
[1642462769065,2.858,139.94,139.88,6.11599226]
[1642462769366,37.0230931,139.93,139.88,4.0748451]
[1642462769563,10.7251,139.92,139.88,4.0748451]
[1642462770764,10.7251,139.92,139.87,10.3]
[1642462771368,47.4958931,139.93,139.88,0.25]
[1642462771563,47.4958931,139.93,139.88,3.109]
[1642462774574,47.4958931,139.93,139.88,2.859]
[1642462775564,2.859,139.94,139.88,2.859]
[1642462775770,2.859,139.99,139.89,0.25]
[1642462775966,2.858,140.0,139.89,21.27]
[1642462776167,2.858,140.0,139.89,22.82465814]
[1642462776367,2.858,140.0,139.89,28.82465814]
[1642462776568,36.98411416,139.99,139.89,65.18273865]
[1642462776868,10.7192,139.98,139.9,2.858]
[1642462777075,2.858,140.02,139.91,21.0189]
[1642462777275,2.858,140.02,139.92,2.857]
[1642462777474,2.858,140.02,139.93,10.3]
[1642462777674,2.858,140.02,139.94,2.857]
[1642462777875,2.858,140.02,139.94,8.857]
[1642462778074,55.70025944,140.01,139.94,8.857]
[1642462778302,55.70025944,140.01,139.95,0.25]
[1642462781287,2.858,140.02,139.95,0.25]
[1642462781483,12.22719549,140.03,139.95,10.55]
[1642462781686,1.51129549,140.03,139.95,10.55]
[1642462781883,1.51129549,140.03,139.95,16.55]
[1642462782285,40.32895981,140.03,139.95,16.55]
[1642462782785,40.32895981,140.03,139.95,27.2659]
[1642462782983,43.18595981,140.03,139.96,2.857]
[1642462783382,0.25,140.02,139.96,6.0]
[1642462783583,2.857,140.01,139.96,6.0]
[1642462783782,2.857,140.01,139.95,16.3]
[1642462784183,38.44933051,140.0,139.95,16.3]
[1642462786288,38.44933051,140.0,139.96,0.25]
[1642462786490,38.44933051,140.0,139.96,10.55]
[1642462787091,38.44933051,140.0,139.96,16.55]
[1642462787292,10.7169,140.01,139.96,10.55]
[1642462787488,12.22719549,140.03,139.97,2.857]
[1642462787688,1.51129549,140.03,139.97,2.857]
[1642462787888,1.51129549,140.03,139.98,0.25]
[1642462788389,41.95572951,140.02,139.98,0.25]
[1642462788587,41.95572951,140.02,139.99,2.857]
[1642462788788,41.95572951,140.02,140.0,0.25]
[1642462789090,5.56439994,140.01,140.0,0.25]
[1642462790188,5.56439994,140.01,139.99,0.25]
[1642462792595,9.994e-05,140.01,139.99,0.25]
[1642462792793,2.857,140.06,140.0,13.157]
[1642462793194,2.856,140.1,140.0,19.157]
[1642462793416,2.856,140.1,140.0,16.3]
[1642462793616,46.08903347,140.09,140.0,16.3]
[1642462793817,2.856,140.08,140.0,27.0122]
[1642462794016,3.106,140.08,140.0,27.0122]
[1642462794418,3.106,140.08,140.01,0.25]
[1642462794619,3.106,140.08,140.01,10.55]
[1642462794818,3.106,140.08,140.01,16.55]
[1642462795518,3.106,140.08,140.01,27.2613]
[1642462795719,2.856,140.08,140.01,27.2613]
[1642462796420,46.08903347,140.09,140.02,2.856]
[1642462796619,46.08903347,140.09,140.03,10.7094]
[1642462796819,46.08903347,140.09,140.04,13.155]
[1642462797219,1.5423994,140.11,140.05,0.25]
[1642462797419,1.5423994,140.11,140.05,8.418]
[1642462797621,1.5423994,140.11,140.06,10.3]
[1642462797820,1.5423994,140.11,140.07,3.105]
[1642462798119,1.5423994,140.11,140.07,85.105]
[1642462798419,1.5423994,140.11,140.07,91.105]
[1642462798819,1.5423994,140.11,140.07,102.07]
[1642462800125,9.94e-05,140.11,140.07,102.07]
[1642462800323,2.855,140.18,140.07,103.62208309]
[1642462800622,2.854,140.19,140.07,103.62208309]
[1642462800821,8.42577466,140.2,140.11,10.7012]
[1642462801022,56.94645108,140.2,140.12,40.77503716]
[1642462801224,54.09245108,140.2,140.13,71.7]
[1642462801422,48.52067642,140.2,140.14,13.153]
[1642462801624,48.52067642,140.2,140.14,13.403]
[1642462801822,48.52067642,140.2,140.14,19.403]
[1642462802633,48.52067642,140.2,140.14,30.1042]
[1642462802830,48.52067642,140.2,140.14,27.2512]
[1642462803231,48.52067642,140.2,140.14,16.3]
[1642462803931,2.853,140.19,140.14,16.3]